Cogmind - Beta 15 @@@ ROGUE MODE // 2025.08.13 @ 20:22:00 Player: Waste Result: Destroyed by CT-85W(R) with Subdweller Machine Gun Performance ------------- Evolutions (0) 0 Regions Visited (2) 400 Robots Destroyed (23) 115 Value Destroyed (572) 572 Prototype IDs (4) 80 Alien Tech Used (0) 0 Bonus (0) 0 TOTAL SCORE: 1167 Bonus ------- None Cogmind --------- Core Integrity 0/250 Matter 280/300 Energy 220/250 System Corruption 1% Temperature Cool (0) Movement Treading (160) Location -10/Subcaves Parts ------- > --- POWER (1) -------- Ion Engine > --- PROPULSION (2) --- Light Treads Light Treads > --- UTILITY (2) ------ Large Storage Unit > --- WEAPON (2) ------- Particle Cannon Particle Cannon > --- INVENTORY (15) --- Light Treads Light Treads Aluminum Leg Aluminum Leg Improved Aluminum Leg Improved Aluminum Leg Wheel Compact Wheel Particle Gun Subdweller Laser Subdweller Machine Gun Subdweller Machine Gun Peak State ------------ > --- POWER ------------ Ion Engine > --- PROPULSION ------- Improved Aluminum Leg Improved Aluminum Leg > --- UTILITY ---------- Improved Heat Sink Large Storage Unit > --- WEAPON ----------- Particle Cannon Particle Cannon > --- INVENTORY -------- Ion Engine Light Treads Light Treads Light Treads Light Treads Aluminum Leg Aluminum Leg Improved Aluminum Leg Improved Aluminum Leg Wheel Compact Wheel Medium Battery Particle Cannon Particle Cannon Subdweller Machine Gun [Rating: 15] Favorites ----------- Power Ion Engine Engine Ion Engine Propulsion Improved Aluminum Leg Treads Light Treads Leg Improved Aluminum Leg Utility Large Storage Unit Device Heat Sink Storage Large Storage Unit Weapon Particle Cannon Energy Gun Small Laser Energy Cannon Particle Cannon Ballistic Gun Light Assault Rifle Build | -11 -10 -10 ------- Run | Yrd Mat Sub Slots Evolved . | . . . Power . | . . . Propulsion . | . . . Utility . | . . . Weapon . | . . . Parts Attached 15 | . 6 9 Power 1 | . . 1 Engine 1 | . . 1 Core . | . . . Reactor . | . . . Propulsion 6 | . 2 4 Treads 2 | . . 2 Leg 4 | . 2 2 Wheel . | . . . Hover . | . . . Flight . | . . . Utility 4 | . 2 2 Device 2 | . 1 1 Storage 2 | . 1 1 Processor . | . . . Hackware . | . . . Protection . | . . . Artifact . | . . . Weapon 4 | . 2 2 Energy Gun . | . . . Energy Cannon 4 | . 2 2 Ballistic Gun . | . . . Ballistic Cannon . | . . . Launcher . | . . . Special Weapon . | . . . Impact Weapon . | . . . Slashing Weapon . | . . . Piercing Weapon . | . . . Special Melee Weapon . | . . . Unidentified Prototypes . | . . . Parts Lost 7 | . . 7 Power 1 | . . 1 Propulsion 2 | . . 2 Utility 2 | . . 2 Weapon 2 | . . 2 Highest Loss Streak 2 | . . 2 To Critical Strikes . | . . . Average Backups 12 | . 12 12 Power . | . 1 . Propulsion 8 | . 8 8 Utility . | . . . Weapon 3 | . 2 3 Tool/Special . | . . . Unused Backups 20 | . 11 9 Power . | . . . Propulsion 7 | . 3 4 Utility 2 | . 2 . Weapon 11 | . 6 5 Tool/Special . | . . . Average Slot Usage (%) 98 | . 98 97 Engine 14 | . 14 14 Leg 27 | . 28 26 Device 8 | . 12 5 Storage 17 | . 14 20 Energy Gun 4 | . 10 . Energy Cannon 19 | . 7 27 Ballistic Gun 4 | . 10 . Peak Build Rating 15 | . 12 15 Average Rating 11 | . 9 12 On Entrance 8 | 6 6 12 Naked Turns . | . . . Heaviest Build 35 | 12 34 35 Greatest Support 40 | 20 26 40 Greatest Overweight (x) 1 | . 1 1 Average Overweight (x) . | . . . Largest Inventory Capacity 15 | . 15 15 Average Capacity 14 | . 14 15 Most Carried 15 | . 15 15 Average Carried 12 | . 12 12 Final Capacity 15 | 8 15 15 Final Carried 15 | 6 15 12 Class Distribution -------------------- 100% | Mutant Dominant Class ---------------- Mutant | -10/Materials Mutant | -10/Subcaves Resources | -11 -10 -10 ----------- Run | Yrd Mat Sub Matter Collected 359 | 200 104 55 Remotely . | . . . Salvage Created 691 | . 253 438 Parts 38 | . 19 19 Haulers Intercepted . | . . . Recyclers Shooed 1 | . 1 . Parts Field Recycled . | . . . Retrieved Matter . | . . . Parts Self-Destructed 16 | . . 16 Prevented . | . . . Kills | -11 -10 -10 ------- Run | Yrd Mat Sub Combat Hostiles Destroyed 22 | . 10 12 Guns 7 | . 7 . Cannons 15 | . 3 12 Classes Destroyed 4 | . 3 1 Worker 1 | . 1 . Swarmer 10 | . 6 4 Grunt 8 | . 4 4 Subdweller 4 | . . 4 Best Kill Streak 4 | . 3 4 Combat Bots Only 4 | . 2 4 Max Kills in Single Turn 2 | . 2 1 Gunslinging . | . . . Exploded . | . . . Melee . | . . . Uniques/NPCs Destroyed . | . . . Combat | -11 -10 -10 -------- Run | Yrd Mat Sub Hostile Shots Fired 124 | . 32 92 Missed 30 | . 11 19 Hits 94 | . 21 73 Projectile 94 | . 21 73 Critical Strikes 1 | . 1 . Damage Taken 1325 | . 212 1113 Core 267 | . 40 227 Absorbed by Shields . | . . . Core Remaining (%) 100 | 100 . . Volleys Fired 72 | . 23 49 Largest 2 | . 2 2 Hottest 136 | . 136 136 Shots Fired 144 | . 46 98 Gun 38 | . 38 . Cannon 106 | . 8 98 Launcher . | . . . Special . | . . . Kinetic 19 | . 19 . Thermal 125 | . 27 98 Explosive . | . . . Electromagnetic . | . . . Robot Hit Streak 12 | . 5 12 Robot Miss Streak 2 | . 2 2 Penetration Max . | . . . Secondary Targets . | . . . Shots Hit Robots 90 | . 27 63 Core Hits 36 | . 18 18 Critical Kills . | . . . Critical Parts Destroyed . | . . . Critical Strikes . | . . . Melee Attacks . | . . . Impact . | . . . Slashing . | . . . Piercing . | . . . Sneak Attacks . | . . . Combat Hostiles . | . . . Follow-up Attacks . | . . . Damage Inflicted 1692 | . 342 1350 Guns 231 | . 231 . Cannons 1461 | . 111 1350 Explosions . | . . . Melee . | . . . Ramming . | . . . Kinetic 52 | . 52 . Thermal 1640 | . 290 1350 Explosive . | . . . Electromagnetic . | . . . Impact . | . . . Slashing . | . . . Piercing . | . . . Highest Corruption 1 | . 1 1 Average Corruption 1 | . 1 1 Corruption Purged . | . . . Corruption Blocked . | . . . Effects 11 | . 6 5 Message Errors 2 | . 2 . Matter Fused 3 | . 3 . Heat Flow Errors 2 | . 1 1 Data Loss (minor) 3 | . . 3 Data Loss (major) 1 | . . 1 Overload Shots . | . . . Overflow Damage 8 | . . 8 Projectiles 8 | . . 8 Explosions . | . . . Melee . | . . . Knockbacks . | . . . Impact . | . . . Kinetic . | . . . Secondary . | . . . Self-Inflicted Damage . | . . . Shots . | . . . Rammed . | . . . Targets Rammed . | . . . Kicked . | . . . Crushed . | . . . Highest Temperature 227 | . 133 227 Average Temperature 61 | . 38 74 Received Heat Transfer 351 | . 75 276 Siege Activations . | . . . Martial Activations . | . . . Shielding Activations . | . . . Robots Disrupted . | . . . Combat Hostiles . | . . . Robots Corrupted . | . . . Combat Hostiles . | . . . Parts Fried . | . . . Impact Corruptions . | . . . Robots Melted . | . . . Combat Hostiles . | . . . Parts Melted 5 | . 1 4 Heat Transferred 2953 | . 585 2368 Parts Sabotaged . | . . . Parts Stolen . | . . . Parts Stripped . | . . . Power Chain Reactions . | . . . Alert | -11 -10 -10 ------- Run | Yrd Mat Sub Maximum Alert Level . | . . . Low Security (%) 100 | . 100 . Level 1 . | . . . Level 2 . | . . . Level 3 . | . . . Level 4 . | . . . Level 5 . | . . . High Security . | . . . Max Security . | . . . Peak Influence 73 | . 73 . Initial . | . . . Average 25 | . 25 . Influence Increases 546 | . 291 255 Destroy 0b10 Robot/C 360 | . 200 160 Destroy 0b10 Robot/NC 5 | . 5 . Destroy Leader 60 | . 40 20 Successful Hack 16 | . 16 . Lose Combat Pursuer 105 | . 30 75 Influence Decreases 546 | . 261 285 Entered New Map 15 | . . 15 Time Decay 481 | . 261 220 Lost Part 50 | . . 50 Squads Dispatched 1 | . 1 . Investigation 1 | . 1 . Extermination . | . . . Reinforcement . | . . . Assault . | . . . Garrison . | . . . Intercept . | . . . Searches Triggered . | . . . Construction Impeded . | . . . Haulers Reinforced . | . . . Active Scanning Responses . | . . . Cargo Convoy Interrupts . | . . . Stealth | -11 -10 -10 --------- Run | Yrd Mat Sub Distress Signals 2 | . 2 . Communications Jammed . | . . . Distress Signals . | . . . Times Spotted 34 | . 18 16 Peak Tracking Total 5 | . 3 5 Tactical Retreats 3 | . 1 2 Traps | -11 -10 -10 ------- Run | Yrd Mat Sub Traps Triggered 3 | . 2 1 Indirectly . | . . . Trap Hack Attempts . | . . . Triggered . | . . . Disarmed . | . . . Reprogrammed . | . . . Reused . | . . . Traps Extracted . | . . . Installed . | . . . Triggered . | . . . Machines | -11 -10 -10 ---------- Run | Yrd Mat Sub Machines Disabled . | . . . Max in Single Turn . | . . . Machines Repaired . | . . . Machines Dismantled . | . . . Machines Sabotaged . | . . . Overloaded Fab Kills . | . . . Hacking | -11 -10 -10 --------- Run | Yrd Mat Sub Machines Accessed 4 | . 3 1 Terminals 3 | . 3 . Fabricators . | . . . Repair Stations . | . . . Recycling Units . | . . . Scanalyzers . | . . . Garrison Access . | . . . Total Hacks 13 | . 10 3 Successful 7 | . 4 3 Failed 6 | . 6 . Catastrophic 1 | . 1 . Database Lockouts . | . . . Manual 10 | . 10 . Terminals 10 | . 10 . Fabricators . | . . . Repair Stations . | . . . Recycling Units . | . . . Scanalyzers . | . . . Garrison Access . | . . . Terminal Hacks 7 | . 4 3 Record 3 | . . 3 Robot Analysis 2 | . 2 . Prototype ID Bank 2 | . 2 . Fabricator Hacks . | . . . Repair Station Hacks . | . . . Recycling Unit Hacks . | . . . Scanalyzer . | . . . Garrison Access Hacks . | . . . Unauthorized Hacks . | . . . Terminals . | . . . Fabricators . | . . . Repair Stations . | . . . Recycling Units . | . . . Scanalyzers . | . . . Garrison Access . | . . . Data Cores Recovered . | . . . Used . | . . . Hacking Detections 3 | . 3 . Full Trace Events 1 | . 1 . Feedback Events . | . . . Feedback Blocked . | . . . Robot Schematics Acquired . | . . . Robots Built . | . . . Authchips . | . . . Time . | . . . Total Robot Build Rating . | . . . Part Schematics Acquired . | . . . Parts Built . | . . . Authchips . | . . . Time . | . . . Total Part Build Rating . | . . . Parts Repaired . | . . . Time . | . . . Parts Recycled . | . . . Recycled Matter . | . . . Retrieved Matter . | . . . Retrieved Components . | . . . Parts Scanalyzed . | . . . Part Schematics Acquired . | . . . Parts Damaged . | . . . Bothacking | -11 -10 -10 ------------ Run | Yrd Mat Sub Used RIF Installer . | . . . Robots Hacked . | . . . Non-combat . | . . . Combat . | . . . Robot Hacks Applied . | . . . Relay Couplers Released . | . . . Fabnet Peak Effective % . | . . . Robots Rewired . | . . . Allies Hacked . | . . . Hacks Repelled . | . . . Allies | -11 -10 -10 -------- Run | Yrd Mat Sub Total Allies . | . . . Largest Group . | . . . Highest-Rated Group . | . . . Highest-Rated Ally . | . . . Total Orders . | . . . Ally Attacks . | . . . Total Damage . | . . . Kills . | . . . Allies Corrupted . | . . . Allies Melted . | . . . Intel | -11 -10 -10 ------- Run | Yrd Mat Sub Active Infowar (turns) . | . . . Robot Analysis Total 2 | . 2 . Derelict Logs Recovered 1 | . . 1 Drone Launches . | . . . Drone Recoveries . | . . . Exploration | -11 -10 -10 ------------- Run | Yrd Mat Sub Turns Passed 2059 | . 887 1172 Spaces Moved 947 | 1 429 517 Core . | . . . Treads 14 | . . 14 Legs 933 | 1 429 503 Wheels . | . . . Hover . | . . . Flight . | . . . Fastest Speed 120 | 120 120 160 Average Speed 184 | 120 179 189 Slowest Speed 190 | 120 190 190 Overloaded Moves . | . . . Propulsion Burnouts . | . . . Robots Hopped . | . . . Potential Cave-ins . | . . . Cave-ins Triggered . | . . . Exploration Rate (%) 38 | 2 80 33 Regions Visited 2 Branch Regions 1 Pre-discovered Areas 1 | . . 1 Known Exits Taken . | . . . Unknown Exits Taken 2 | 1 1 . Scrap Searched . | . . . Spaces Dug . | . . . Terrain Destroyed . | . . . Melee . | . . . Projectile . | . . . AOE . | . . . Terrain Rammed . | . . . Walls Destroyed . | . . . Machines Disabled . | . . . Actions | -11 -10 -10 --------- Run | Yrd Mat Sub Total 1122 | . 508 614 Wait 66 | . 33 33 Move 945 | . 428 517 Hop . | . . . Pick Up 16 | . 12 4 Fast Attach 1 | . 1 . Attach 6 | . . 6 Detach . | . . . Swap 8 | . 5 3 Drop 8 | . 6 2 Fire 72 | . 23 49 Melee . | . . . Ram . | . . . Kick . | . . . Crush . | . . . Escape Stasis . | . . . Rewire . | . . . Trap . | . . . Miscellaneous . | . . . Route ------- -11/Scrapyard -10/Materials (discovered 5 exits: [*Mat x2] / [*Min x2] / *Sub) -10/Subcaves (discovered 1 exit: [*Mat]) History --------- Turn | Location | Event 1 | -11/Scrapyard | Discovered new exit (range 0) 1 | -11/Scrapyard | Entered Materials 162 | -10/Materials | Discovered new exit (range 5) 316 | -10/Materials | Build established: Mutant 362 | -10/Materials | Discovered new exit (range 9) 373 | -10/Materials | Discovered new exit (range 14) 506 | -10/Materials | Discovered new exit (range 16) 873 | -10/Materials | Discovered new exit (range 4) 888 | -10/Materials | Entered Subcaves 889 | -10/Subcaves | Approached by a straggling Scientist 1275 | -10/Subcaves | Visited Clippyterm 1281 | -10/Subcaves | Learned Factory stockpile data 1338 | -10/Subcaves | Core integrity fell below 50% 1431 | -10/Subcaves | Discovered new exit (range 8) 1915 | -10/Subcaves | Core integrity fell below 20% 2060 | -10/Subcaves | Destroyed by CT-85W(R) with Subdweller Machine Gun Last Messages --------------- 01939_ K5-BEF(u) deconstructs Twisted Machinery. 01939_ Disposable Heat Sink melted. 01939_ Sub. Monowheel melted. 01939_ DL-SBT(R) destroyed. 01940_ 4Q-9JL(u) builds Twisted Machinery. 01941_ K5-BEF(u) deconstructs Twisted Machinery. 01942_ 4Q-9JL(u) builds Twisted Machinery. 01943_ Subatomizers dissect the Sub. Machine Gun. 01943_ K5-BEF(u) deconstructs Twisted Machinery. 01944_ 4Q-9JL(u) builds Twisted Machinery. 01954_ Subatomizers dissect the Sub. Machine Gun. Z8-X97(c): "I think it's somewhere south of here" 01959_ Acquired Sub. Machine Gun. 01960_ Acquired 5 matter. 01964_ Acquired Sub. Laser. 01983_ Subatomizers dissect the Sub. Optics. 01999_ VN-5WQ(R): "ECOKILL!" Z8-X97(c): "I think it's somewhere south of here" 02015_ Subatomizers dissect the Sub. Optics. 02043_ System corrupted: Substantial component data lost. Map ----- +----------------------------------------------------+ | #?????????????## " ###?????????????????????? | | ?????????????## #?????????????????????? | | ?????????????# #?????????????????????? | | ????????????# #?????????????????????? | | ????????????## "#### #?####????????????????? | | ?????????????#####???### ### #????????????????? | | ???????????????????????# #????????????????? | | ???????????????????????# #????????????????? | | ???????????????????????## ##???????????????? | | ????????????????????????### & "#???????????????? | | ??????????????????????????####%%##???????????????? | | ????????????????????????##### &!##???????????????? | | ????????????????????????# ### "###?????????????? | | ????????????????????????# ""##????????????? | | ????????????????????????# "" #????????????? | | ???????????????????????## # """##????????????? | | ???????????????????????#" "###?????????????? | | ???????????????????????#" #"# ##???????????????? | | ???????????????????????## ###""##????????????????? | | ????????????????????????#c######?????????????????? | | ????????????????????????# "#?????????????????????? | | ???????????????????????## "#?????????????????????? | | ???????????????????????# ##?????????????????????? | | ???????????????????????# #??????????????????????? | | ???????????????????????# #?????????#????????????? | | ???????????????????????# @#### #????????????? | | ???????????????????????# "RR #????????????? | | ???????????????????????# " ### #????????????? | | ???????????????????????##" ###???????????????????? | | ????????????????????????## ?????????????????????? | | ????????????????????????? #????????????????????? | | ?????????????????????????# ##????????????????????? | | ????????????????????????? #?????????????????????? | | ?????????????????????????# ?????????????????????? | | ?????????????????????????# #?????????????????????? | | ?????????????????????????? ??????????????????????? | | ?????????????????????????? ??????????????????????? | | ?????????????????????????? ??????????????????????? | | ?????????????????????????? ??????????????????????? | | ?????????????????????????? ??????????????????????? | | ?????????????????????????? ??????????????????????? | | ?????????????????????????? ??????????????????????? | | ?????????????????????????????????????????????????? | | ?????????????????????????????????????????????????? | | ?????????????????????????????????????????????????? | | ?????????????????????????????????????????????????? | | ?????????????????????????????????????????????????? | | ?????????????????????????????????????????????????? | | ?????????????????????????????????????????????????? | | ?????????????????????????????????????????????????? | +----------------------------------------------------+ Best States ------------- Heat Dissipation 39 Energy Generation 10 Energy Capacity 400 Matter Stores 300 Matter Capacity 300 Sight Range 16 Terrain Scan Density 10 Evasion (%) 55 Recoil Reduction 2 Item Schematics ----------------- None Robot Schematics ------------------ None Fabricated ------------ Nothing Repaired ---------- Nothing Alien Tech Used ----------------- None Achievements -------------- None Challenges ------------ None Game ------ Seed NetworkedTeslaGun Manual? 0 Play Time 00:12:26 Cumulative 410.8 hours Start 2025.08.13 @ 20:14:16 End 2025.08.13 @ 20:22:00 Sessions 1 Manual Loads 0 Difficulty Rogue Special Mode None Game No. 521 Rogue 521 Adventurer 0 Explorer 0 Win Type - Total 32 Types 16/1/9/1/1/1/0/1/1/1 Lore% 88 Gallery% 83 Achievement% 77 Wizard Run 0 Options --------- Layout 0 ASCII 0 Keyboard 0 Movement Numpad Keybinds 0 Fullscreen 1 Font 18/SmallcapsGlow Map View 76x50 Zoom Use 0% Tactical HUD 1 Map Filters NONE Filters NONE Steam 1 RUN: 6087e294-31a7-471b-9909-c72ba39a90d2